Cogmind - Beta 12 @@@ ROGUE MODE // 2023.03.08 @ 11:27:37 Player: blelm Result: Destroyed by EX-DEC with AWS/EX-DEC Performance ------------- Evolutions (1) 500 Regions Visited (5) 1000 Robots Destroyed (54) 270 Value Destroyed (1164) 1164 Prototype IDs (29) 580 Alien Tech Used (0) 0 Bonus (233) 233 TOTAL SCORE: 3747 Bonus ------- Follower Combat Kills 85 Aligned with FarCom 300 Friendly Fire -152 Cogmind --------- Core Integrity 0/400 Matter 264/300 Energy 310/310 System Corruption 2% Temperature Cool (35) Movement Treading (240) Ox1 Location -9/Exiles Parts ------- > --- POWER (1) -------- Reinforced Fission Core > --- PROPULSION (3) --- Light Treads Light Treads Light Treads > --- UTILITY (3) ------ Huge Storage Unit Makeshift Salvage Targeting Computer Advanced Weapon Cycler > --- WEAPON (2) ------- Improved Assault Rifle Improved Assault Rifle > --- INVENTORY (25) --- Light Treads Experimental Heat Sink High-capacity Matter Pod (29) Experimental Targeting Computer Weapon Shielding Long-range Tractor Beam YOLO Cannon Heavy Assault Rifle Heavy Assault Rifle Heavy Assault Rifle Heavy Assault Rifle Improved Assault Rifle 8R-AWN's Boregun 8R-AWN's Boregun Rocket Launcher Rocket Launcher Peak State ------------ > --- POWER ------------ Reinforced Fission Core > --- PROPULSION ------- Light Treads Light Treads Light Treads > --- UTILITY ---------- Huge Storage Unit Makeshift Salvage Targeting Computer Advanced Weapon Cycler > --- WEAPON ----------- Improved Assault Rifle Improved Assault Rifle > --- INVENTORY -------- Light Treads Light Treads Experimental Heat Sink High-capacity Matter Pod Experimental Targeting Computer Weapon Shielding Long-range Tractor Beam YOLO Cannon Heavy Assault Rifle Heavy Assault Rifle Heavy Assault Rifle Heavy Assault Rifle Improved Assault Rifle 8R-AWN's Boregun 8R-AWN's Boregun Rocket Launcher Rocket Launcher [Rating: 35] Favorites ----------- Power Heavy Ion Engine Engine Heavy Ion Engine Power Core Reinforced Fission Core Propulsion Light Treads Treads Light Treads Leg Aluminum Leg Wheel Compact Wheel Utility Light Armor Plating Device Seismic Detector Storage Huge Storage Unit Processor Makeshift Salvage Targeting Computer Protection Light Armor Plating Weapon Heavy Assault Rifle Energy Gun Medium Laser Ballistic Gun Heavy Assault Rifle Launcher Rocket Launcher Special Weapon Mining Laser Build | -11 -10 -10 -9 -9 -9 ------- Run | Jun Mat Min Mat Min Exi Slots Evolved 2 | . . . 2 . . Power . | . . . . . . Propulsion 1 | . . . 1 . . Utility 1 | . . . 1 . . Weapon . | . . . . . . Parts Attached 106 | 5 16 12 41 5 27 Power 10 | . 2 3 3 . 2 Engine 8 | . 2 2 3 . 1 Core 2 | . . 1 . . 1 Reactor . | . . . . . . Propulsion 27 | 3 4 1 14 . 5 Treads 20 | 1 1 . 13 . 5 Leg 1 | 1 . . . . . Wheel 6 | 1 3 1 1 . . Hover . | . . . . . . Flight . | . . . . . . Utility 18 | 1 2 . 3 1 11 Device 4 | 1 . . . . 3 Storage 3 | . 2 . 1 . . Processor 2 | . . . . . 2 Hackware . | . . . . . . Protection 9 | . . . 2 1 6 Artifact . | . . . . . . Weapon 51 | 1 8 8 21 4 9 Energy Gun 4 | . 2 2 . . . Energy Cannon . | . . . . . . Ballistic Gun 33 | 1 4 5 14 2 7 Ballistic Cannon . | . . . . . . Launcher 4 | . . . 1 1 2 Special Weapon 10 | . 2 1 6 1 . Impact Weapon . | . . . . . . Slashing Weapon . | . . . . . . Piercing Weapon . | . . . . . . Special Melee Weapon . | . . . . . . Unidentified Prototypes 3 | . . . . . 3 Parts Lost 17 | . 1 2 2 1 11 Power 2 | . . 1 . . 1 Propulsion 7 | . 1 . 1 . 5 Utility 6 | . . . 1 1 4 Weapon 2 | . . 1 . . 1 Highest Loss Streak 6 | . 1 1 1 1 6 To Critical Strikes 4 | . . . . . 4 Average Slot Usage (%) 98 | . 100 99 98 99 95 Engine 10 | . 14 13 10 11 8 Core 1 | . . . . . 2 Treads 26 | . 14 14 31 33 32 Wheel 5 | . 14 14 1 . . Device 7 | . 14 14 11 . . Storage 12 | . 14 14 11 11 11 Protection 10 | . . . 10 21 17 Energy Gun 2 | . 12 3 . . . Ballistic Gun 19 | . 15 19 20 21 18 Special Weapon 1 | . . 4 1 . . Naked Turns . | . . . . . . Heaviest Build 109 | 14 50 53 98 100 109 Greatest Support 60 | 20 16 16 60 60 60 Greatest Overweight (x) 3 | 1 3 3 3 1 2 Average Overweight (x) 1 | . 2 3 1 1 1 Largest Inventory Capacity 25 | 8 20 20 25 25 25 Average Capacity 22 | 8 19 20 23 25 25 Most Carried 25 | 8 20 20 25 25 25 Average Carried 20 | 6 14 19 23 24 21 Final Capacity 25 | 8 20 20 25 25 25 Final Carried 25 | 6 19 20 25 25 17 Class Distribution -------------------- 53% | Scavenger-Mutant 46% | Mutant Dominant Class ---------------- Mutant | -10/Materials Mutant | -10/Mines Scavenger-Mutant | -9/Materials Scavenger-Mutant | -9/Mines Scavenger-Mutant | -9/Exiles Resources | -11 -10 -10 -9 -9 -9 ----------- Run | Jun Mat Min Mat Min Exi Matter Collected 2663 | 256 605 245 741 71 745 Remotely . | . . . . . . Salvage Created 2147 | 136 744 189 866 32 180 Parts 144 | 8 31 8 62 7 28 Haulers Intercepted 5 | . 2 . 3 . . Recyclers Shooed 3 | . 1 1 1 . . Parts Field Recycled . | . . . . . . Retrieved Matter . | . . . . . . Parts Self-Destructed . | . . . . . . Prevented . | . . . . . . Kills | -11 -10 -10 -9 -9 -9 ------- Run | Jun Mat Min Mat Min Exi Combat Hostiles Destroyed 37 | . 10 2 16 4 5 Guns 27 | . 9 2 13 1 2 AOE 9 | . . . 3 3 3 Classes Destroyed 13 | 2 3 2 3 . 3 Worker 2 | . . 1 1 . . Builder 1 | . . . 1 . . Tunneler 2 | 2 . . . . . Hauler 5 | . 2 . 3 . . Recycler 4 | 1 2 1 . . . Mechanic 1 | . . . 1 . . Turret 1 | . . . . . 1 Watcher 3 | . 2 . 1 . . Swarmer 8 | . . . 4 4 . Grunt 16 | . 10 . 6 . . Sentry 8 | . . 2 6 . . Zionite 1 | . . . . . 1 Assembled 4 | . . . . . 4 Thug 1 | . . . 1 . . Best Kill Streak 4 | 2 3 2 4 4 4 Combat Bots Only 4 | . 3 2 4 4 4 Max Kills in Single Turn 4 | 1 1 1 4 3 2 Gunslinging . | . . . . . . Exploded 3 | . . . 3 3 2 Melee . | . . . . . . Uniques/NPCs Destroyed 2 | . . . . . 2 8R-AWN (-9/Exiles) EX-BIN (-9/Exiles) Combat | -11 -10 -10 -9 -9 -9 -------- Run | Jun Mat Min Mat Min Exi Damage Taken 3760 | . 504 382 993 126 1755 Core 626 | . 121 97 125 21 262 Absorbed by Shields . | . . . . . . Redirected to Shielding 18 | . . . . . 18 Core Remaining (%) 56 | 100 . 12 . . . Volleys Fired 231 | 6 57 21 72 4 71 Largest 2 | 2 2 2 2 2 2 Hottest 100 | 70 100 100 100 100 46 Shots Fired 410 | 12 108 34 127 5 124 Gun 365 | 12 102 33 110 2 106 Cannon . | . . . . . . Launcher 20 | . . . 1 1 18 Special 25 | . 6 1 16 2 . Kinetic 312 | 6 62 26 110 2 106 Thermal 78 | 6 46 8 16 2 . Explosive 20 | . . . 1 1 18 Electromagnetic . | . . . . . . Robot Hit Streak 21 | 2 15 11 14 13 21 Robot Miss Streak 4 | 1 3 4 3 . 1 Penetration Max . | . . . . . . Secondary Targets 1 | . . 1 . . . Max Gunslinging Chain 1 | . . 1 . . . Shots Hit Robots 277 | 6 73 22 83 2 91 Core Hits 114 | 4 32 8 37 3 30 Critical Kills . | . . . . . . Critical Parts Destroyed 2 | . . . 2 . . Critical Strikes 9 | 1 6 . 2 . . Burn 7 | 1 6 . . . . Destroy 2 | . . . 2 . . Melee Attacks . | . . . . . . Impact . | . . . . . . Slashing . | . . . . . . Piercing . | . . . . . . Sneak Attacks . | . . . . . . Combat Hostiles . | . . . . . . Follow-up Attacks . | . . . . . . Damage Inflicted 4937 | 73 836 300 1497 249 1982 Guns 3782 | 73 805 287 1240 31 1346 Cannons . | . . . . . . Explosions 1051 | . . . 215 200 636 Melee . | . . . . . . Ramming 104 | . 31 13 42 18 . Kinetic 3312 | . 458 237 1240 31 1346 Thermal 470 | 73 347 50 . . . Explosive 1051 | . . . 215 200 636 Electromagnetic . | . . . . . . Impact . | . . . . . . Slashing . | . . . . . . Piercing . | . . . . . . Highest Corruption 2 | . . . . . 2 Average Corruption 1 | . . . . . 1 Corruption Purged . | . . . . . . Corruption Blocked . | . . . . . . Overload Shots . | . . . . . . Overflow Damage 85 | . . . 33 51 1 Projectiles . | . . . . . . Explosions 85 | . . . 33 51 1 Melee . | . . . . . . Knockbacks . | . . . . . . Impact . | . . . . . . Kinetic . | . . . . . . Secondary . | . . . . . . Self-Inflicted Damage 65 | . . . . 37 28 Shots 2 | . . . . 1 1 Rammed 14 | . 6 2 5 1 . Targets Rammed 17 | . 7 3 6 1 . Kicked . | . . . . . . Crushed 3 | . 1 1 1 . . Highest Temperature 232 | 90 232 50 144 36 56 Average Temperature 39 | 41 51 18 31 20 29 Received Heat Transfer 840 | . 282 117 405 36 . Siege Activations . | . . . . . . Robots Corrupted . | . . . . . . Combat Hostiles . | . . . . . . Parts Fried . | . . . . . . Impact Corruptions . | . . . . . . Robots Melted 2 | . 2 . . . . Combat Hostiles 1 | . 1 . . . . Parts Melted 3 | . 3 . . . . Heat Transferred 1924 | 296 1480 148 . . . Parts Sabotaged . | . . . . . . Parts Stolen . | . . . . . . Parts Stripped . | . . . . . . Power Chain Reactions . | . . . . . . Missiles Intercepted . | . . . . . . Alert | -11 -10 -10 -9 -9 -9 ------- Run | Jun Mat Min Mat Min Exi Peak Influence 275 | 15 155 56 275 94 . Initial 55 | . 9 55 . 5 . Average 77 | 8 69 16 152 62 . Maximum Alert Level 1 | . . . 1 . . Low Security (%) 91 | 100 100 100 70 100 . Level 1 8 | . . . 29 . . Level 2 . | . . . . . . Level 3 . | . . . . . . Level 4 . | . . . . . . Level 5 . | . . . . . . High Security . | . . . . . . Max Security . | . . . . . . Squads Dispatched 5 | . 4 . 1 . . Investigation 3 | . 3 . . . . Extermination . | . . . . . . Reinforcement 2 | . 1 . 1 . . Assault . | . . . . . . Garrison . | . . . . . . Intercept . | . . . . . . Searches Triggered . | . . . . . . Construction Impeded . | . . . . . . Haulers Reinforced . | . . . . . . Active Scanning Responses . | . . . . . . Cargo Convoy Interrupts . | . . . . . . Stealth | -11 -10 -10 -9 -9 -9 --------- Run | Jun Mat Min Mat Min Exi Distress Signals 2 | . 1 . 1 . . Communications Jammed . | . . . . . . Distress Signals . | . . . . . . Times Spotted 91 | . 18 3 30 7 33 Peak Tracking Total 9 | . 3 2 6 4 9 Tactical Retreats 12 | . 1 . 1 . 10 Traps | -11 -10 -10 -9 -9 -9 ------- Run | Jun Mat Min Mat Min Exi Traps Triggered 3 | . 2 . 1 . . Indirectly . | . . . . . . Trap Hack Attempts . | . . . . . . Triggered . | . . . . . . Disarmed . | . . . . . . Reprogrammed . | . . . . . . Reused . | . . . . . . Traps Extracted . | . . . . . . Installed 1 | . . . . . 1 Triggered . | . . . . . . Most Traps Carried 1 | . . . . 1 1 Exploded 3 | . . . . . 3 Machines | -11 -10 -10 -9 -9 -9 ---------- Run | Jun Mat Min Mat Min Exi Machines Disabled 6 | . . . . . 6 Max in Single Turn 1 | . . . . . 1 Machines Repaired . | . . . . . . Machines Sabotaged . | . . . . . . Overloaded Fab Kills . | . . . . . . Hacking | -11 -10 -10 -9 -9 -9 --------- Run | Jun Mat Min Mat Min Exi Machines Accessed 18 | . 9 1 6 . 2 Terminals 13 | . 7 . 6 . . Fabricators . | . . . . . . Repair Stations . | . . . . . . Recycling Units 2 | . 2 . . . . Scanalyzers . | . . . . . . Garrison Access . | . . . . . . Total Hacks 38 | . 22 1 13 . 2 Successful 15 | . 8 1 4 . 2 Failed 22 | . 13 . 9 . . Catastrophic 2 | . 2 . . . . Database Lockouts 1 | . 1 . . . . Manual 29 | . 17 . 11 . 1 Terminals 33 | . 20 . 13 . . Fabricators . | . . . . . . Repair Stations . | . . . . . . Recycling Units 2 | . 2 . . . . Scanalyzers . | . . . . . . Garrison Access . | . . . . . . Terminal Hacks 9 | . 4 1 2 . 2 Record 2 | . . . 1 . 1 Part Schematic 1 | . 1 . . . . Prototype ID Bank 1 | . 1 . . . . Open Door 1 | . . 1 . . . Unreport Threat 1 | . . . 1 . . Locate Traps 1 | . 1 . . . . Zone Layout 1 | . 1 . . . . EX-Prototype ID Bank 1 | . . . . . 1 Fabricator Hacks . | . . . . . . Repair Station Hacks . | . . . . . . Recycling Unit Hacks . | . . . . . . Scanalyzer . | . . . . . . Garrison Access Hacks . | . . . . . . Unauthorized Hacks 6 | . 4 . 2 . . Terminals 4 | . 2 . 2 . . Track 1 | . 1 . . . . Botnet 1 | . . . 1 . . Operators 2 | . 1 . 1 . . Fabricators . | . . . . . . Repair Stations . | . . . . . . Recycling Units 2 | . 2 . . . . Tunnel 2 | . 2 . . . . Scanalyzers . | . . . . . . Garrison Access . | . . . . . . Data Cores Recovered . | . . . . . . Used . | . . . . . . Hacking Detections 13 | . 7 . 6 . . Full Trace Events . | . . . . . . Feedback Events . | . . . . . . Feedback Blocked . | . . . . . . Robot Schematics Acquired . | . . . . . . Robots Built . | . . . . . . Authchips . | . . . . . . Time . | . . . . . . Total Robot Build Rating . | . . . . . . Part Schematics Acquired 1 | . 1 . . . . Parts Built . | . . . . . . Authchips . | . . . . . . Time . | . . . . . . Total Part Build Rating . | . . . . . . Parts Repaired . | . . . . . . Time . | . . . . . . Parts Recycled . | . . . . . . Recycled Matter . | . . . . . . Retrieved Matter . | . . . . . . Retrieved Components . | . . . . . . Parts Scanalyzed . | . . . . . . Part Schematics Acquired . | . . . . . . Parts Damaged . | . . . . . . Bothacking | -11 -10 -10 -9 -9 -9 ------------ Run | Jun Mat Min Mat Min Exi Used RIF Installer . | . . . . . . Robots Hacked . | . . . . . . Non-combat . | . . . . . . Combat . | . . . . . . Robot Hacks Applied . | . . . . . . Relay Couplers Released . | . . . . . . Fabnet Peak Effective % . | . . . . . . Robots Rewired . | . . . . . . Allies Hacked . | . . . . . . Hacks Repelled . | . . . . . . Allies | -11 -10 -10 -9 -9 -9 -------- Run | Jun Mat Min Mat Min Exi Total Allies 3 | . . . . 3 . Largest Group 3 | . . . . 3 3 Highest-Rated Group 40 | . . . . 40 40 Highest-Rated Ally 16 | . . . . 16 16 Total Orders 1 | . . . . . 1 STAY 1 | . . . . . 1 Ally Attacks 33 | . . . . 15 18 Total Damage 366 | . . . . 202 164 Kills 8 | . . . . 3 5 Allies Corrupted . | . . . . . . Allies Melted . | . . . . . . Intel | -11 -10 -10 -9 -9 -9 ------- Run | Jun Mat Min Mat Min Exi Robot Analysis Total . | . . . . . . Derelict Logs Recovered 4 | . . 2 . 2 . Drone Launches . | . . . . . . Drone Recoveries . | . . . . . . Exploration | -11 -10 -10 -9 -9 -9 ------------- Run | Jun Mat Min Mat Min Exi Turns Passed 9224 | 68 1418 1734 1802 982 3220 Spaces Moved 3712 | 29 750 691 664 395 1183 Core . | . . . . . . Treads 2079 | . . . 501 395 1183 Legs 19 | 19 . . . . . Wheels 1614 | 10 750 691 163 . . Hover . | . . . . . . Flight . | . . . . . . Fastest Speed 100 | 100 100 145 145 240 240 Average Speed 196 | 132 144 145 207 240 240 Slowest Speed 320 | 190 145 145 240 240 320 Overloaded Moves . | . . . . . . Propulsion Burnouts . | . . . . . . Robots Hopped . | . . . . . . Cave-ins Triggered . | . . . . . . Exploration Rate (%) 69 | 3 98 87 78 70 79 Regions Visited 5 Branch Regions 3 Pre-discovered Areas 3 | . 2 . . . 1 Known Exits Taken . | . . . . . . Unknown Exits Taken 5 | 1 1 1 1 1 . Scrap Searched 3 | . . 1 . 2 . Spaces Dug 45 | . 6 1 20 14 4 Terrain Destroyed 67 | . 6 1 25 14 21 Melee . | . . . . . . Projectile 25 | . 6 1 16 2 . AOE 42 | . . . 9 12 21 Terrain Rammed . | . . . . . . Walls Destroyed . | . . . . . . Machines Disabled . | . . . . . . Actions | -11 -10 -10 -9 -9 -9 --------- Run | Jun Mat Min Mat Min Exi Total 5174 | 47 950 1377 934 418 1448 Wait 981 | 3 99 642 91 13 133 Move 3707 | 28 749 690 663 394 1183 Hop . | . . . . . . Pick Up 64 | 2 16 5 26 1 14 Fast Attach 13 | 2 2 1 3 . 5 Attach 25 | 2 3 2 3 1 14 Detach 4 | . . . . . 4 Swap 68 | 1 11 9 35 4 8 Drop 63 | 3 6 4 35 . 15 Fire 231 | 6 57 21 72 4 71 Melee . | . . . . . . Ram . | . . . . . . Kick . | . . . . . . Crush 17 | . 7 3 6 1 . Escape Stasis . | . . . . . . Rewire . | . . . . . . Trap 1 | . . . . . 1 Miscellaneous . | . . . . . . Route ------- -11/Junkyard -10/Materials (discovered 4 exits: *Mat x3 / *Min) -10/Mines -9/Materials (discovered 4 exits: *Mat x3 / [*Min]) -9/Mines (discovered 3 exits: *Mat / *Exi / [*Zio]) -9/Exiles (discovered 2 exits: [*Min x2]) History --------- Turn | Location | Event 1 | -11/Junkyard | Discovered new exit (range 3) 69 | -11/Junkyard | Entered Materials 310 | -10/Materials | Build established: Mutant 370 | -10/Materials | Discovered new exit (range 10) 605 | -10/Materials | Discovered new exit (range 10) 862 | -10/Materials | Central database locked down 1065 | -10/Materials | Discovered new exit (range 10) 1140 | -10/Materials | Discovered new exit (range 16) 1487 | -10/Materials | Entered Mines 1576 | -10/Mines | Assembled infested the area 2271 | -10/Mines | A weapon hastily lodged in a ceiling crevice suddenly fell to the ground 2400 | -10/Mines | Received a Rocket Launcher from a helpful Derelict 2616 | -10/Mines | Discovered new exit (range 10) 2675 | -10/Mines | Core integrity fell below 50% 2692 | -10/Mines | Learned location of 1 exit from Materials 2967 | -10/Mines | Core integrity fell below 20% 3122 | -10/Mines | Learned Materials terminal intel 3149 | -10/Mines | Met a Derelict who couldn't figure out how to use a Trap Extractor 3221 | -10/Mines | Entered Materials 3221 | -9/Materials | Evolved 2 slots: Propulsion x1, Utility x1 3222 | -9/Materials | Identified exit to Materials 3223 | -9/Materials | Loaded intel: 10 terminal locations 3582 | -9/Materials | Build established: Scavenger-Mutant 4266 | -9/Materials | Discovered exit to Materials (range 5) 4624 | -9/Materials | Discovered exit to Materials (range 16) 4980 | -9/Materials | Discovered new exit (range 12) 5023 | -9/Materials | Entered Mines 5085 | -9/Mines | Learned location of 1 exit from Materials 5225 | -9/Mines | A Derelict revealed a hidden shortcut to a safe place 5378 | -9/Mines | Found a hidden stash of uninstalled traps 5523 | -9/Mines | Assisted by bots powering up and referring to "LRC-V3" 5917 | -9/Mines | Discovered exit to Materials (range 11) 5996 | -9/Mines | Deemed a non-threat by the Exiles lab entrance 5996 | -9/Mines | Discovered new exit (range 5) 6005 | -9/Mines | Entered Exiles 6005 | -9/Exiles | Accompanied by 3 allies 6041 | -9/Exiles | Discovered new exit (range 15) 6070 | -9/Exiles | Met 8R-AWN 6101 | -9/Exiles | Met EX-HEX 6185 | -9/Exiles | Met EX-BIN 6214 | -9/Exiles | Aligned with FarCom system 6217 | -9/Exiles | Given EX-Vault access code 6277 | -9/Exiles | Opened EX-Vault 6329 | -9/Exiles | Warned to stay clear of 0b10 Research branches 6399 | -9/Exiles | Met EX-DEC 6586 | -9/Exiles | Learned location of Zion (-7) 6675 | -9/Exiles | Discovered new exit (range 14) 6869 | -9/Exiles | Visited The Gauntlet 7149 | -9/Exiles | Found YOLO Cannon 7952 | -9/Exiles | Attacked by the Exiles 7994 | -9/Exiles | Core integrity fell below 50% 8170 | -9/Exiles | Destroyed 8R-AWN 8187 | -9/Exiles | Lost 6 parts (1p3n2u) 8187 | -9/Exiles | Found Prototype Ballistic Gun 8187 | -9/Exiles | Identified 8R-AWN's Boregun 8195 | -9/Exiles | Found 8R-AWN's Boregun 8203 | -9/Exiles | Found Prototype Processor 8253 | -9/Exiles | Build established: Mutant 8471 | -9/Exiles | Core integrity fell below 20% 8508 | -9/Exiles | Lost 3 parts (1n1u1w) 9161 | -9/Exiles | Destroyed EX-BIN 9225 | -9/Exiles | Destroyed by EX-DEC with AWS/EX-DEC Last Messages --------------- 08479_ Hvy. Ion Engine blasted off. 08500_ Acquired 3 matter. 08510_ Acquired 7 matter. 08512_ Acquired 10 matter. 08560_ Dropped Hcp. Matter Pod. 08561_ Extracted 32 matter. 08562_ Acquired Hcp. Matter Pod. 08733_ Extracted 24 matter. 08736_ Extracted 50 matter. 08750_ Extracted 6 energy. 09046_ Acquired 28 matter. 09051_ Acquired 22 matter. 09053_ EX-BIN: "I just want to science!" 09092_ Acquired 50 matter. 09097_ Acquired Mak. Salvage Targeting Computer. 09161_ EX-BIN: "You can't kill me, my evil twin will get revenge!" 09161_ EX-BIN destroyed. 09164_ ZX-C33 destroyed. 09177_ Acquired 27 matter. 09219_ Lgt. Treads destroyed. Map ----- +----------------------------------------------------+ | ???????????###" """##?????????##""" | | ????????????#" """##???????????#"""" | | ????????????# " ""#???????????##"" | | ????????????#" ########??####"""" | | ????????????#"" ## ####""" | | ????????????#" """" | | ????????????##" | | ?????????????#"" | | ?????????????## | | ??????????????#" " "" | | ??????????????#"""" ""## ##""" " " | | ??????????????#"" ""#### ######""" | | ??????????????#" """"##??# #????###"" | | ??????????????#""" """#??## ####???### | | ??????????????## ""##??# "!#?????? | | ???????????????#"" """##???#" !#?????? | | ???????????????##""" ##????#" "#?????? | | ????????????????##"""" ##?????#!!""!"#?????? | | ?????????????????### #??????########?????? | | ???????????????????##### ##???????????????????? | | ???????????????????????## #????????????????????? | | ????????????????????????# #????????????????????? | | ????????????????????????# #????????????????????? | | ????????????????????????# #????????????????????? | | ????????????????????????# #????????????????????? | | ????????????????????????#@ #????????????????????? | | ????????????????????????# = #????????????????????? | | ????????????????????????#==*#????????????????????? | | ????????????????????????#!* #????????????????????? | | ???????????????" ??????#=!=#????????????????????? | | ??????????????##"""######!*!########?????????????? | | ?????????????""" """ "%c!!" """""#?????????????? | | ???????????""""=% !!!!!!! "#""???????????? | | ????????? !!%!! " "?????????? | | ????????? %= *!%! " "??????????? | | ????????? = " "??????????? | | ????????? "" #"" ??????????? | | ??????????""""" " """" """""#?????????????? | | ?????????????###"""########"""######?????????????? | | ???????????????" ????????" ""?????????????????? | | ??????????????????????????" """#????????????????? | | ??????????????????????????""""""#????????????????? | | ??????????????????????????? """"?????????????????? | | ???????????????????????????"?""??????????????????? | | ?????????????????????????????????????????????????? | | ?????????????????????????????????????????????????? | | ?????????????????????????????????????????????????? | | ?????????????????????????????????????????????????? | | ?????????????????????????????????????????????????? | | | +----------------------------------------------------+ Best States ------------- Heat Dissipation 54 Energy Generation 19 Energy Capacity 310 Matter Stores 300 Matter Capacity 300 Sight Range 16 Terrain Scan Density 10 Armor Coverage 375 Weapon Shielding 33 Weapon Cycling 25 Evasion (%) 45 Recoil Reduction 3 Salvage Targeting 4 Item Schematics ----------------- Huge Storage Unit | -10/Materials | Hacked Robot Schematics ------------------ None Fabricated ------------ Nothing Alien Tech Used ----------------- None Achievements -------------- None Challenges ------------ None Game ------ Seed DataMatterExtractor Manual? 0 Play Time 02:17:25 Cumulative 520.2 hours Start 2023.03.05 @ 20:13:45 End 2023.03.08 @ 11:27:37 Sessions 3 Manual Loads 0 Difficulty Rogue Special Mode None Game No. 274 Rogue 274 Adventurer 0 Explorer 0 Win Type - Total 26 Types 1/5/4/1/1/1/11/1/1 Lore% 91 Gallery% 91 Achievement% 76 Wizard Run 0 Options --------- ASCII 1 Keyboard 1 Movement Vi Keybinds 0 Fullscreen 2 Font 18/SmallcapsGlow Map View 76x50 Tactical HUD 1 Map Filters NONE Filters NONE Steam 1 RUN: 96cf7c1c-591a-40b6-aa54-bce5984f67c4